[Event "Late-Titled-Tuesday-Blitz-September-05-2023"]
[Site "Chess.com"]
[Date "2023.09.05"]
[Round "9"]
[White "Truequitos"]
[Black "cande_francisco"]
[Result "1-0"]
[WhiteElo "2452"]
[BlackElo "2527"]
[TimeControl "180+1"]
[EndTime "15:46:51 PDT"]
[Termination "Truequitos won by resignation"]

1. e4 {[%clk 0:03:00.9]} 1... c5 {[%clk 0:03:00]} 2. Nc3 {[%clk 0:02:59.5]} 2...
g6 {[%clk 0:03:00]} 3. g3 {[%clk 0:02:59.9]} 3... Bg7 {[%clk 0:02:57.7]} 4. Bg2
{[%clk 0:02:59.8]} 4... Nc6 {[%clk 0:02:58.4]} 5. d3 {[%clk 0:03:00.2]} 5... e6
{[%clk 0:02:59.1]} 6. Be3 {[%clk 0:03:00.4]} 6... Nd4 {[%clk 0:02:58.8]} 7. Qd2
{[%clk 0:02:56.2]} 7... Ne7 {[%clk 0:02:58.2]} 8. Nd1 {[%clk 0:02:44.4]} 8... b6
{[%clk 0:02:20]} 9. c3 {[%clk 0:02:43.2]} 9... Ndc6 {[%clk 0:02:20.2]} 10. Bh6
{[%clk 0:02:42.7]} 10... Bxh6 {[%clk 0:02:16.3]} 11. Qxh6 {[%clk 0:02:41.6]}
11... Ng8 {[%clk 0:02:14.5]} 12. Qd2 {[%clk 0:02:36.4]} 12... Bb7 {[%clk
0:02:13.7]} 13. Ne2 {[%clk 0:02:36.7]} 13... d5 {[%clk 0:02:03.7]} 14. exd5
{[%clk 0:02:35.7]} 14... exd5 {[%clk 0:02:04.6]} 15. O-O {[%clk 0:02:34.3]}
15... Nge7 {[%clk 0:02:04]} 16. d4 {[%clk 0:02:25.4]} 16... Qd6 {[%clk
0:01:53.1]} 17. Ne3 {[%clk 0:02:24.1]} 17... O-O-O {[%clk 0:01:46.4]} 18. Nf4
{[%clk 0:02:13.2]} 18... cxd4 {[%clk 0:01:23]} 19. cxd4 {[%clk 0:02:11.2]} 19...
Na5 {[%clk 0:01:11.8]} 20. Rfc1+ {[%clk 0:01:56.2]} 20... Kb8 {[%clk 0:01:11.1]}
21. b4 {[%clk 0:01:56.7]} 21... Nac6 {[%clk 0:01:07.6]} 22. a3 {[%clk 0:01:55]}
22... g5 {[%clk 0:00:57.4]} 23. Nfxd5 {[%clk 0:01:45]} 23... Nxd5 {[%clk
0:00:37.5]} 24. Nxd5 {[%clk 0:01:27]} 24... Ne7 {[%clk 0:00:19.3]} 25. Nxe7
{[%clk 0:01:23.5]} 25... Bxg2 {[%clk 0:00:20]} 26. Kxg2 {[%clk 0:00:57.6]} 26...
Qxe7 {[%clk 0:00:20.3]} 27. Qe3 {[%clk 0:00:55.6]} 27... Qb7+ {[%clk 0:00:20.2]}
28. Kg1 {[%clk 0:00:51.5]} 28... f6 {[%clk 0:00:18.6]} 29. Re1 {[%clk
0:00:42.6]} 29... h5 {[%clk 0:00:18.2]} 30. Qe6 {[%clk 0:00:35.6]} 30... h4
{[%clk 0:00:15.3]} 31. Qxf6 {[%clk 0:00:32.1]} 31... hxg3 {[%clk 0:00:04.1]} 32.
fxg3 {[%clk 0:00:32.1]} 32... Qh7 {[%clk 0:00:03.7]} 33. Qe5+ {[%clk 0:00:31.4]}
33... Ka8 {[%clk 0:00:02.7]} 34. Qe4+ {[%clk 0:00:31.5]} 34... Qxe4 {[%clk
0:00:03.1]} 35. Rxe4 {[%clk 0:00:31.7]} 35... Rd5 {[%clk 0:00:03.8]} 36. Rae1
{[%clk 0:00:29.8]} 36... Rhd8 {[%clk 0:00:02.9]} 37. Re8 {[%clk 0:00:25.7]}
37... Rxd4 {[%clk 0:00:03.1]} 38. Rxd8+ {[%clk 0:00:24.9]} 38... Rxd8 {[%clk
0:00:04]} 39. Kg2 {[%clk 0:00:19.9]} 39... g4 {[%clk 0:00:03.7]} 40. Re2 {[%clk
0:00:19.5]} 40... Rd3 {[%clk 0:00:04]} 41. Ra2 {[%clk 0:00:18.4]} 41... Kb7
{[%clk 0:00:03]} 42. h3 {[%clk 0:00:18.9]} 42... gxh3+ {[%clk 0:00:03.6]} 43.
Kxh3 {[%clk 0:00:19.8]} 43... a5 {[%clk 0:00:03.8]} 44. b5 {[%clk 0:00:16.6]}
44... Rb3 {[%clk 0:00:03.1]} 45. a4 {[%clk 0:00:16.9]} 45... Kc7 {[%clk
0:00:03.5]} 46. Kh4 {[%clk 0:00:16.3]} 46... Rb4+ {[%clk 0:00:03.4]} 47. g4
{[%clk 0:00:16.1]} 47... Kd7 {[%clk 0:00:04.2]} 48. Kh5 {[%clk 0:00:16.5]} 48...
Ke7 {[%clk 0:00:04.7]} 49. g5 {[%clk 0:00:13.7]} 49... Kf7 {[%clk 0:00:05.1]}
50. Rc2 {[%clk 0:00:12.5]} 50... Rxa4 {[%clk 0:00:04.4]} 51. Rc7+ {[%clk
0:00:13.1]} 51... Kg8 {[%clk 0:00:04.6]} 52. Kh6 {[%clk 0:00:10.2]} 52... Ra1
{[%clk 0:00:02.2]} 53. Rc8+ {[%clk 0:00:07.1]} 53... Kf7 {[%clk 0:00:02.7]} 54.
g6+ {[%clk 0:00:07.6]} 54... Kf6 {[%clk 0:00:02.7]} 55. Rf8+ {[%clk 0:00:07.6]}
55... Ke7 {[%clk 0:00:03.3]} 56. Rf5 {[%clk 0:00:05.1]} 56... Rh1+ {[%clk
0:00:02.9]} 57. Kg7 {[%clk 0:00:04]} 57... Rg1 {[%clk 0:00:02.9]} 58. Rf7+
{[%clk 0:00:04.2]} 58... Ke6 {[%clk 0:00:02.5]} 59. Ra7 {[%clk 0:00:04.6]} 59...
Rg2 {[%clk 0:00:01.7]} 60. Ra6 {[%clk 0:00:04]} 60... Kd5 {[%clk 0:00:01.7]} 61.
Rxb6 {[%clk 0:00:04.2]} 61... Kc5 {[%clk 0:00:02.4]} 62. Rb8 {[%clk 0:00:04.4]}
62... a4 {[%clk 0:00:03]} 63. b6 {[%clk 0:00:05]} 63... a3 {[%clk 0:00:03.4]}
64. b7 {[%clk 0:00:04.8]} 64... Kb6 {[%clk 0:00:03.4]} 65. Ra8 {[%clk
0:00:05.1]} 65... Kxb7 {[%clk 0:00:03.9]} 66. Rxa3 {[%clk 0:00:05.7]} 66... Kc7
{[%clk 0:00:04.6]} 67. Rf3 {[%clk 0:00:06.3]} 67... Kd7 {[%clk 0:00:05]} 68. Kf7
{[%clk 0:00:06.8]} 1-0

[Event "Late-Titled-Tuesday-Blitz-September-05-2023"]
[Site "Chess.com"]
[Date "2023.09.05"]
[Round "9"]
[White "McCarthyStone"]
[Black "canary2016"]
[Result "1-0"]
[WhiteElo "2449"]
[BlackElo "2070"]
[TimeControl "180+1"]
[EndTime "15:46:53 PDT"]
[Termination "McCarthyStone won by resignation"]

1. d4 {[%clk 0:03:00]} 1... Nf6 {[%clk 0:02:59.5]} 2. g4 {[%clk 0:03:00.5]} 2...
e6 {[%clk 0:02:55.8]} 3. g5 {[%clk 0:02:59.5]} 3... Nd5 {[%clk 0:02:55.7]} 4. e4
{[%clk 0:02:59.7]} 4... Nb6 {[%clk 0:02:55.4]} 5. a4 {[%clk 0:02:58.8]} 5... d5
{[%clk 0:02:55.2]} 6. a5 {[%clk 0:02:58.1]} 6... N6d7 {[%clk 0:02:55.1]} 7. exd5
{[%clk 0:02:56.7]} 7... exd5 {[%clk 0:02:55.2]} 8. Bd3 {[%clk 0:02:55.6]} 8...
Be7 {[%clk 0:02:55.3]} 9. Nf3 {[%clk 0:02:51.2]} 9... O-O {[%clk 0:02:54.1]} 10.
Nc3 {[%clk 0:02:48.5]} 10... Re8 {[%clk 0:02:51.9]} 11. Kf1 {[%clk 0:02:45.4]}
11... Nf8 {[%clk 0:02:48.7]} 12. h4 {[%clk 0:02:46]} 12... c5 {[%clk 0:02:45.7]}
13. Bf4 {[%clk 0:02:41.1]} 13... cxd4 {[%clk 0:02:44.7]} 14. Nxd4 {[%clk
0:02:40.7]} 14... Nc6 {[%clk 0:02:43]} 15. Ndb5 {[%clk 0:02:29.6]} 15... Ne6
{[%clk 0:02:36.3]} 16. Nxd5 {[%clk 0:02:18.8]} 16... Nxf4 {[%clk 0:02:18.8]} 17.
Nxf4 {[%clk 0:02:18]} 17... a6 {[%clk 0:02:13.2]} 18. Nc3 {[%clk 0:02:02.4]}
18... Qd4 {[%clk 0:02:06.7]} 19. Qf3 {[%clk 0:01:52.9]} 19... Bc5 {[%clk
0:02:00.9]} 20. Rd1 {[%clk 0:01:47.2]} 20... Bg4 {[%clk 0:01:48]} 21. Qg3 {[%clk
0:01:08.4]} 21... Bxd1 {[%clk 0:01:44.4]} 22. Nxd1 {[%clk 0:01:09.3]} 22... Ne5
{[%clk 0:01:30.9]} 23. Be2 {[%clk 0:01:06.6]} 23... Nc4 {[%clk 0:01:26.5]} 24.
Nh5 {[%clk 0:00:56.7]} 24... Nd2+ {[%clk 0:01:20.9]} 25. Ke1 {[%clk 0:00:46.6]}
25... Qe4 {[%clk 0:01:18.2]} 26. Nf6+ {[%clk 0:00:44.3]} 26... gxf6 {[%clk
0:01:13.3]} 27. gxf6+ {[%clk 0:00:45.1]} 27... Qg6 {[%clk 0:01:14]} 28. Kxd2
{[%clk 0:00:33.1]} 28... Rad8+ {[%clk 0:01:02.1]} 29. Bd3 {[%clk 0:00:33.3]}
29... Qxg3 {[%clk 0:01:01.4]} 30. fxg3 {[%clk 0:00:34.2]} 30... Bd4 {[%clk
0:01:00.2]} 31. Rf1 {[%clk 0:00:27.8]} 31... Re6 {[%clk 0:00:59.7]} 32. c3
{[%clk 0:00:19.6]} 32... Bxf6 {[%clk 0:00:58.6]} 33. Ne3 {[%clk 0:00:20.5]}
33... Red6 {[%clk 0:00:56.6]} 34. Nf5 {[%clk 0:00:06.5]} 34... Rxd3+ {[%clk
0:00:55.5]} 35. Kc2 {[%clk 0:00:07.4]} 35... Rd2+ {[%clk 0:00:51.2]} 36. Kb3
{[%clk 0:00:08.3]} 36... Bg7 {[%clk 0:00:48.5]} 37. h5 {[%clk 0:00:04.9]} 37...
Rd1 {[%clk 0:00:45.2]} 38. Rf4 {[%clk 0:00:04.6]} 38... Kf8 {[%clk 0:00:22.1]}
39. h6 {[%clk 0:00:04.6]} 39... Be5 {[%clk 0:00:21.6]} 40. Re4 {[%clk
0:00:03.5]} 40... Bc7 {[%clk 0:00:17.8]} 41. Nd4 {[%clk 0:00:02.3]} 41... Bxa5
{[%clk 0:00:16.6]} 42. Rf4 {[%clk 0:00:02.6]} 42... Re1 {[%clk 0:00:11.9]} 43.
Rf6 {[%clk 0:00:02]} 43... Bc7 {[%clk 0:00:04.8]} 44. Nc2 {[%clk 0:00:02.9]}
44... Re2 {[%clk 0:00:04.4]} 45. Rf3 {[%clk 0:00:03.2]} 45... Rg2 {[%clk
0:00:04.4]} 46. Nd4 {[%clk 0:00:03.5]} 46... Rxg3 {[%clk 0:00:04.6]} 47. Ne6+
{[%clk 0:00:04.1]} 47... Ke8 {[%clk 0:00:04.4]} 48. Nxc7+ {[%clk 0:00:04.9]}
48... Kd7 {[%clk 0:00:04.3]} 49. Rxg3 {[%clk 0:00:05.7]} 49... Kxc7 {[%clk
0:00:04.1]} 50. Rg7 {[%clk 0:00:06.4]} 50... Rh8 {[%clk 0:00:03.2]} 51. Rxf7+
{[%clk 0:00:06.7]} 51... Kc6 {[%clk 0:00:03.8]} 52. Kb4 {[%clk 0:00:07]} 52...
b6 {[%clk 0:00:03.5]} 53. Rf6+ {[%clk 0:00:07.3]} 53... Kb7 {[%clk 0:00:03.7]}
54. c4 {[%clk 0:00:07.6]} 54... a5+ {[%clk 0:00:03.8]} 55. Kb5 {[%clk
0:00:07.7]} 55... Ka7 {[%clk 0:00:04]} 56. Rf7+ {[%clk 0:00:07.6]} 56... Ka8
{[%clk 0:00:03.4]} 57. Kxb6 {[%clk 0:00:08]} 57... Rb8+ {[%clk 0:00:03.6]} 58.
Kxa5 {[%clk 0:00:07.8]} 58... Rxb2 {[%clk 0:00:03.9]} 59. Rxh7 {[%clk
0:00:07.4]} 59... Ra2+ {[%clk 0:00:04.2]} 60. Kb5 {[%clk 0:00:07.6]} 60... Rb2+
{[%clk 0:00:04.6]} 61. Kc6 {[%clk 0:00:07.6]} 61... Rc2 {[%clk 0:00:04.7]} 62.
c5 {[%clk 0:00:07.7]} 62... Rf2 {[%clk 0:00:03.6]} 63. Rh8+ {[%clk 0:00:07.2]}
63... Ka7 {[%clk 0:00:03.6]} 64. h7 {[%clk 0:00:07.2]} 64... Rf6+ {[%clk
0:00:03.9]} 65. Kd5 {[%clk 0:00:07.2]} 65... Rf5+ {[%clk 0:00:04.1]} 66. Ke6
{[%clk 0:00:06.8]} 66... Rxc5 {[%clk 0:00:04]} 67. Rg8 {[%clk 0:00:05.8]} 67...
Rc6+ {[%clk 0:00:03.9]} 68. Kd5 {[%clk 0:00:05.6]} 68... Rh6 {[%clk 0:00:03.8]}
69. h8=Q {[%clk 0:00:05.7]} 69... Rxh8 {[%clk 0:00:03.8]} 70. Rxh8 {[%clk
0:00:06.4]} 1-0

[Event "Late-Titled-Tuesday-Blitz-September-05-2023"]
[Site "Chess.com"]
[Date "2023.09.05"]
[Round "9"]
[White "Sinquefield"]
[Black "Jenia84"]
[Result "0-1"]
[WhiteElo "2449"]
[BlackElo "2354"]
[TimeControl "180+1"]
[EndTime "15:47:13 PDT"]
[Termination "Jenia84 won on time"]

1. d4 {[%clk 0:02:53]} 1... Nf6 {[%clk 0:02:55.5]} 2. Bg5 {[%clk 0:02:46.6]}
2... e6 {[%clk 0:02:55.1]} 3. Nf3 {[%clk 0:02:45.9]} 3... c5 {[%clk 0:02:55.6]}
4. e3 {[%clk 0:02:44.2]} 4... h6 {[%clk 0:02:54.9]} 5. Bh4 {[%clk 0:02:44]} 5...
g5 {[%clk 0:02:54.3]} 6. Bg3 {[%clk 0:02:43.7]} 6... Nc6 {[%clk 0:02:54]} 7. c3
{[%clk 0:02:43.4]} 7... d5 {[%clk 0:02:51.6]} 8. Nbd2 {[%clk 0:02:42.6]} 8...
Bd7 {[%clk 0:02:50]} 9. Bd3 {[%clk 0:02:42.6]} 9... Rc8 {[%clk 0:02:46.9]} 10.
Qe2 {[%clk 0:02:40.1]} 10... Qb6 {[%clk 0:02:36.1]} 11. Rb1 {[%clk 0:02:37]}
11... cxd4 {[%clk 0:02:30.2]} 12. exd4 {[%clk 0:02:36.4]} 12... Be7 {[%clk
0:02:24.8]} 13. Ne5 {[%clk 0:02:31.9]} 13... Nxe5 {[%clk 0:02:24.2]} 14. Bxe5
{[%clk 0:02:32.8]} 14... a6 {[%clk 0:02:16.2]} 15. h4 {[%clk 0:02:25.3]} 15...
Rg8 {[%clk 0:02:09.2]} 16. hxg5 {[%clk 0:02:16]} 16... hxg5 {[%clk 0:02:09]} 17.
Qf3 {[%clk 0:02:13.3]} 17... g4 {[%clk 0:01:58.5]} 18. Qf4 {[%clk 0:02:09.3]}
18... Qd8 {[%clk 0:01:56]} 19. Rh6 {[%clk 0:02:06.1]} 19... Ne4 {[%clk
0:01:51.6]} 20. Nxe4 {[%clk 0:02:00.6]} 20... dxe4 {[%clk 0:01:51.4]} 21. Bxe4
{[%clk 0:02:01.5]} 21... Bg5 {[%clk 0:01:48]} 22. Qxg4 {[%clk 0:01:55.6]} 22...
Bd2+ {[%clk 0:01:30]} 23. Kxd2 {[%clk 0:01:54.7]} 23... Rxg4 {[%clk 0:01:30]}
24. Rh8+ {[%clk 0:01:54.3]} 24... Ke7 {[%clk 0:01:29.9]} 25. Rxd8 {[%clk
0:01:54.4]} 25... Rxd8 {[%clk 0:01:27]} 26. Bf3 {[%clk 0:01:30]} 26... Rg5
{[%clk 0:01:21.9]} 27. Bxb7 {[%clk 0:01:28.6]} 27... Rxe5 {[%clk 0:01:16.2]} 28.
dxe5 {[%clk 0:01:22.2]} 28... Bc6+ {[%clk 0:01:16.4]} 29. Ke3 {[%clk 0:01:15.9]}
29... Bxb7 {[%clk 0:01:16.6]} 30. g4 {[%clk 0:01:14.2]} 30... Rh8 {[%clk
0:01:13]} 31. f3 {[%clk 0:01:03.4]} 31... Rh3 {[%clk 0:01:11.1]} 32. Rf1 {[%clk
0:01:03.4]} 32... Rh2 {[%clk 0:01:02.9]} 33. Rf2 {[%clk 0:01:02.6]} 33... Rh1
{[%clk 0:01:03.1]} 34. b4 {[%clk 0:00:48.4]} 34... Bd5 {[%clk 0:00:59.5]} 35.
Kd4 {[%clk 0:00:33.2]} 35... Rd1+ {[%clk 0:00:53.3]} 36. Kc5 {[%clk 0:00:33.4]}
36... Rc1 {[%clk 0:00:53.4]} 37. Kd4 {[%clk 0:00:26.7]} 37... Kd7 {[%clk
0:00:42.8]} 38. a4 {[%clk 0:00:19.2]} 38... Kc6 {[%clk 0:00:42.1]} 39. f4 {[%clk
0:00:09.9]} 39... Rd1+ {[%clk 0:00:39.4]} 40. Ke3 {[%clk 0:00:10.2]} 40... Re1+
{[%clk 0:00:37.8]} 41. Kd4 {[%clk 0:00:10.3]} 41... Rg1 {[%clk 0:00:35.5]} 42.
g5 {[%clk 0:00:09.1]} 42... Rg3 {[%clk 0:00:30.9]} 43. c4 {[%clk 0:00:08.4]}
43... Bg2 {[%clk 0:00:20.7]} 44. b5+ {[%clk 0:00:08.3]} 44... axb5 {[%clk
0:00:20.2]} 45. axb5+ {[%clk 0:00:08.1]} 45... Kb6 {[%clk 0:00:20.6]} 46. Rb2
{[%clk 0:00:06.3]} 46... Bf1 {[%clk 0:00:13.4]} 47. c5+ {[%clk 0:00:06.3]} 47...
Kc7 {[%clk 0:00:13.9]} 48. b6+ {[%clk 0:00:04.3]} 48... Kc8 {[%clk 0:00:10.4]}
49. b7+ {[%clk 0:00:02.3]} 49... Kb8 {[%clk 0:00:10.1]} 50. c6 {[%clk
0:00:03.2]} 50... Rd3+ {[%clk 0:00:07.9]} 51. Ke4 {[%clk 0:00:02.5]} 51... Rd8
{[%clk 0:00:07.8]} 52. Ke3 {[%clk 0:00:01.4]} 52... Kc7 {[%clk 0:00:05.9]} 53.
Rc2 {[%clk 0:00:01.5]} 53... Rb8 {[%clk 0:00:05.1]} 54. Rc3 {[%clk 0:00:01.8]}
54... Bb5 {[%clk 0:00:05.6]} 55. Ke4 {[%clk 0:00:01.8]} 55... Bxc6+ {[%clk
0:00:06.1]} 56. Ke3 {[%clk 0:00:01.6]} 56... Rxb7 {[%clk 0:00:07]} 57. f5 {[%clk
0:00:02.1]} 57... exf5 {[%clk 0:00:06.6]} 58. Kf4 {[%clk 0:00:02.7]} 58... Rb5
{[%clk 0:00:05.4]} 59. Kxf5 {[%clk 0:00:03]} 59... Kd7 {[%clk 0:00:06]} 60. Kf6
{[%clk 0:00:03.1]} 60... Be4 {[%clk 0:00:05.6]} 61. Rc4 {[%clk 0:00:02.8]} 61...
Bg6 {[%clk 0:00:05.3]} 62. Rd4+ {[%clk 0:00:02.9]} 62... Ke8 {[%clk 0:00:05.2]}
63. e6 {[%clk 0:00:02.6]} 63... Rb6 {[%clk 0:00:05.7]} 64. Kg7 {[%clk
0:00:01.8]} 64... Rxe6 {[%clk 0:00:05.9]} 65. Ra4 {[%clk 0:00:02.3]} 65... Ke7
{[%clk 0:00:06.5]} 66. Ra7+ {[%clk 0:00:01.9]} 66... Kd6 {[%clk 0:00:07.4]} 67.
Ra6+ {[%clk 0:00:02.2]} 67... Ke5 {[%clk 0:00:07.7]} 68. Ra5+ {[%clk 0:00:02.2]}
68... Kf4 {[%clk 0:00:07.9]} 69. Kh6 {[%clk 0:00:02.7]} 69... Re5 {[%clk
0:00:07.6]} 70. Ra4+ {[%clk 0:00:02.3]} 70... Kf5 {[%clk 0:00:08]} 71. Ra6
{[%clk 0:00:02.4]} 71... Re3 {[%clk 0:00:07.9]} 72. Rf6+ {[%clk 0:00:02.9]}
72... Kg4 {[%clk 0:00:08]} 73. Rf1 {[%clk 0:00:02.6]} 73... Rh3+ {[%clk
0:00:08.1]} 74. Kg7 {[%clk 0:00:03.1]} 74... Rf3 {[%clk 0:00:09]} 75. Rg1+
{[%clk 0:00:03.3]} 75... Kf5 {[%clk 0:00:09.3]} 76. Kh6 {[%clk 0:00:03.3]} 76...
Rh3+ {[%clk 0:00:09]} 77. Kg7 {[%clk 0:00:03.3]} 77... Rh5 {[%clk 0:00:09.4]}
78. Rf1+ {[%clk 0:00:03]} 78... Kxg5 {[%clk 0:00:09.9]} 79. Kg8 {[%clk
0:00:03.1]} 79... Kh6 {[%clk 0:00:09.8]} 80. Re1 {[%clk 0:00:02.5]} 80... f5
{[%clk 0:00:10.1]} 0-1

[Event "Late-Titled-Tuesday-Blitz-September-05-2023"]
[Site "Chess.com"]
[Date "2023.09.05"]
[Round "9"]
[White "TC2304"]
[Black "NoGalloNoParty"]
[Result "1-0"]
[WhiteElo "2356"]
[BlackElo "2532"]
[TimeControl "180+1"]
[EndTime "15:47:26 PDT"]
[Termination "TC2304 won on time"]

1. c4 {[%clk 0:03:00.9]} 1... g6 {[%clk 0:02:57.6]} 2. g3 {[%clk 0:02:58.6]}
2... Bg7 {[%clk 0:02:57.4]} 3. Bg2 {[%clk 0:02:58.7]} 3... e5 {[%clk 0:02:56.8]}
4. e3 {[%clk 0:02:55.7]} 4... Ne7 {[%clk 0:02:56.3]} 5. Nc3 {[%clk 0:02:56.4]}
5... O-O {[%clk 0:02:55.8]} 6. Nge2 {[%clk 0:02:57]} 6... c6 {[%clk 0:02:54.1]}
7. O-O {[%clk 0:02:57.7]} 7... d5 {[%clk 0:02:54]} 8. cxd5 {[%clk 0:02:58.6]}
8... cxd5 {[%clk 0:02:54]} 9. d4 {[%clk 0:02:59.3]} 9... e4 {[%clk 0:02:47.9]}
10. Nf4 {[%clk 0:02:56]} 10... Nbc6 {[%clk 0:02:46.5]} 11. Qb3 {[%clk
0:02:55.2]} 11... Na5 {[%clk 0:02:40.2]} 12. Qc2 {[%clk 0:02:52.8]} 12... Bf5
{[%clk 0:02:27.4]} 13. b3 {[%clk 0:02:52.5]} 13... Rc8 {[%clk 0:02:26.2]} 14.
Ba3 {[%clk 0:02:41.8]} 14... Nac6 {[%clk 0:02:24.2]} 15. Qd2 {[%clk 0:02:36.3]}
15... Re8 {[%clk 0:02:23.1]} 16. Rac1 {[%clk 0:02:33]} 16... a6 {[%clk 0:02:21]}
17. Na4 {[%clk 0:02:30.5]} 17... b5 {[%clk 0:02:06.8]} 18. Nc5 {[%clk
0:02:29.6]} 18... Qb6 {[%clk 0:02:05.2]} 19. h3 {[%clk 0:02:25.5]} 19... h5
{[%clk 0:02:04.2]} 20. Qe2 {[%clk 0:02:24.5]} 20... Rc7 {[%clk 0:01:56.7]} 21.
g4 {[%clk 0:02:22.9]} 21... hxg4 {[%clk 0:01:56.6]} 22. hxg4 {[%clk 0:02:23.8]}
22... Bc8 {[%clk 0:01:56.5]} 23. g5 {[%clk 0:02:09]} 23... Rd8 {[%clk
0:01:52.8]} 24. Bh3 {[%clk 0:02:07.8]} 24... Bxh3 {[%clk 0:01:50.3]} 25. Nxh3
{[%clk 0:02:08.7]} 25... Nf5 {[%clk 0:01:49]} 26. Qg4 {[%clk 0:02:07.1]} 26...
b4 {[%clk 0:01:36.3]} 27. Bb2 {[%clk 0:02:06.3]} 27... Na7 {[%clk 0:01:36.2]}
28. Nf4 {[%clk 0:02:00.3]} 28... Nb5 {[%clk 0:01:33.1]} 29. Kg2 {[%clk
0:01:56.4]} 29... a5 {[%clk 0:01:21.7]} 30. Na4 {[%clk 0:01:50.7]} 30... Qd6
{[%clk 0:01:17.6]} 31. Rxc7 {[%clk 0:01:49.8]} 31... Nxc7 {[%clk 0:01:12.9]} 32.
Qh3 {[%clk 0:01:40.1]} 32... Nxd4 {[%clk 0:01:03.5]} 33. Bxd4 {[%clk 0:01:32.6]}
33... Bxd4 {[%clk 0:01:03]} 34. Rh1 {[%clk 0:01:32.7]} 34... Bg7 {[%clk
0:01:00.7]} 35. Qh7+ {[%clk 0:01:30]} 35... Kf8 {[%clk 0:01:00.8]} 36. Rc1
{[%clk 0:01:30.2]} 36... Qe5 {[%clk 0:00:53.2]} 37. Qh4 {[%clk 0:01:30.1]} 37...
d4 {[%clk 0:00:46.9]} 38. exd4 {[%clk 0:01:30.3]} 38... Rxd4 {[%clk 0:00:47]}
39. Qg4 {[%clk 0:01:21]} 39... e3 {[%clk 0:00:37.9]} 40. Rxc7 {[%clk 0:01:07.3]}
40... Qxc7 {[%clk 0:00:35.8]} 41. fxe3 {[%clk 0:00:59]} 41... Rd2+ {[%clk
0:00:35.8]} 42. Kf3 {[%clk 0:00:59.2]} 42... Qc6+ {[%clk 0:00:33.5]} 43. e4
{[%clk 0:00:59.1]} 43... Qd7 {[%clk 0:00:29.6]} 44. Qxd7 {[%clk 0:00:52.9]}
44... Rxd7 {[%clk 0:00:30.5]} 45. Nd5 {[%clk 0:00:50.5]} 45... Bd4 {[%clk
0:00:27.4]} 46. Ke2 {[%clk 0:00:49.7]} 46... Rd8 {[%clk 0:00:22.3]} 47. Kd3
{[%clk 0:00:50]} 47... Be5 {[%clk 0:00:15.5]} 48. Nc5 {[%clk 0:00:45.5]} 48...
Kg7 {[%clk 0:00:13.9]} 49. Nb7 {[%clk 0:00:44.3]} 49... Rc8 {[%clk 0:00:13.7]}
50. Nxa5 {[%clk 0:00:43.3]} 50... Bd6 {[%clk 0:00:14.3]} 51. Nc4 {[%clk
0:00:41.8]} 51... Bc5 {[%clk 0:00:13.9]} 52. Ndb6 {[%clk 0:00:36]} 52... Rd8+
{[%clk 0:00:13.3]} 53. Nd5 {[%clk 0:00:35.9]} 53... Ra8 {[%clk 0:00:13]} 54.
Ncb6 {[%clk 0:00:30.6]} 54... Rxa2 {[%clk 0:00:11.9]} 55. Kc4 {[%clk 0:00:31.4]}
55... Bf8 {[%clk 0:00:12]} 56. Nxb4 {[%clk 0:00:30.9]} 56... Rg2 {[%clk
0:00:12.6]} 57. N4d5 {[%clk 0:00:28.7]} 57... Rxg5 {[%clk 0:00:13.2]} 58. Nd7
{[%clk 0:00:29]} 58... Bd6 {[%clk 0:00:10.3]} 59. b4 {[%clk 0:00:27.7]} 59...
Rg4 {[%clk 0:00:10]} 60. Kd4 {[%clk 0:00:26.9]} 60... Rg1 {[%clk 0:00:08.5]} 61.
e5 {[%clk 0:00:25]} 61... Bf8 {[%clk 0:00:07.8]} 62. b5 {[%clk 0:00:24.8]} 62...
Rb1 {[%clk 0:00:07.1]} 63. b6 {[%clk 0:00:25.1]} 63... g5 {[%clk 0:00:06.6]} 64.
Ke4 {[%clk 0:00:25]} 64... Kg6 {[%clk 0:00:03.4]} 65. Nxf8+ {[%clk 0:00:24.8]}
65... Kh5 {[%clk 0:00:04.1]} 66. Nf6+ {[%clk 0:00:23.2]} 66... Kh4 {[%clk
0:00:05]} 67. N8d7 {[%clk 0:00:10.8]} 67... g4 {[%clk 0:00:05.6]} 68. Nc5 {[%clk
0:00:06.2]} 68... Rxb6 {[%clk 0:00:05]} 69. Nd3 {[%clk 0:00:05.6]} 69... g3
{[%clk 0:00:04.3]} 70. Kf3 {[%clk 0:00:05.9]} 70... Kh3 {[%clk 0:00:04.5]} 71.
Nf4+ {[%clk 0:00:05.9]} 71... Kh2 {[%clk 0:00:05]} 72. Ng4+ {[%clk 0:00:06.2]}
72... Kh1 {[%clk 0:00:04.9]} 73. Kxg3 {[%clk 0:00:06.8]} 73... Rb3+ {[%clk
0:00:05.4]} 74. Kh4 {[%clk 0:00:06.1]} 74... Rb4 {[%clk 0:00:06.1]} 75. Kg5
{[%clk 0:00:06.5]} 75... Re4 {[%clk 0:00:05.9]} 76. Kf5 {[%clk 0:00:06.1]} 76...
Rb4 {[%clk 0:00:06.3]} 77. Nh6 {[%clk 0:00:06.5]} 77... Kh2 {[%clk 0:00:05.6]}
78. Nxf7 {[%clk 0:00:06.6]} 78... Kg3 {[%clk 0:00:06.5]} 79. Nd5 {[%clk
0:00:05.8]} 79... Kh4 {[%clk 0:00:07.4]} 80. Nxb4 {[%clk 0:00:05.7]} 80... Kh5
{[%clk 0:00:08.3]} 81. Nd6 {[%clk 0:00:05.6]} 81... Kh6 {[%clk 0:00:09.2]} 82.
Ke6 {[%clk 0:00:06.2]} 82... Kg7 {[%clk 0:00:10.1]} 83. Kd7 {[%clk 0:00:06.8]}
83... Kf8 {[%clk 0:00:11]} 84. e6 {[%clk 0:00:07.4]} 84... Kg8 {[%clk
0:00:11.7]} 85. e7 {[%clk 0:00:08.1]} 85... Kg7 {[%clk 0:00:12.6]} 86. e8=Q
{[%clk 0:00:07.7]} 1-0